[Event "Turkish-ch Youth U16 2024"]
[Site "Belek Antalya"]
[Date "2024.01.26"]
[Round "8"]
[White "Ceyhan, Mert"]
[Black "Cakmak, Kursat Kagan"]
[Result "1-0"]
[ECO "B40"]
[WhiteElo "2020"]
[BlackElo "1707"]
[Annotator "NA RC"]
[PlyCount "67"]
[EventDate "2024.01.21"]
[EventType "swiss"]
[EventCountry "TUR"]
[SourceTitle "playchess.com"]
[Source "ChessBase"]
[SourceQuality "1"]
[TimeControl "5400+30"]

1. e4 {[%emt 0:07:00]} c5 {[%emt 0:01:00]} 2. Nf3 {[%emt 0:00:30]} e6 {[%emt 0:00:00]} 3. g3 {[%emt 0:00:30]} Nc6 {[%emt 0:00:00]} 4. Bg2 {[%emt 0:00:30]} Nf6 {[%emt 0:00:30]} 5. Qe2 {[%emt 0:00:30]} d5 {[%emt 0:00:30]} 6. exd5 {[%emt 0:00:00] B40: Sicilian: 2...e6, Unusual lines.} Nxd5 {[%emt 0:00:00]} 7. O-O {[%emt 0:00:00]} Be7 {[%emt 0:02:00]} 8. Rd1 $1 {[%emt 0:00:00]} O-O {[%emt 0:06:30]} 9. d4 {[%emt 0:06:00]} cxd4 {[%emt 0:06:30]} 10. Nxd4 {[%emt 0:00:30]} Nxd4 {[%emt 0:01:30]} 11. Rxd4 {[%emt 0:00:30]} Bf6 {[%emt 0:00:30]} 12. Rd1 {[%emt 0:00:30]} Qb6 {[%emt 0:00:30]} 13. c4 {[%emt 0:02:30]} Ne7 {[%emt 0:00:30]} 14. Nc3 {[%emt 0:02:30]} Nf5 {[%emt 0:12:30]} 15. Ne4 {[%emt 0:07:30]} Be7 {[%emt 0:02:30]} 16. b3 {[%emt 0:07:30]} a5 {[%emt 0:04:30]} 17. Bb2 {[%emt 0:06:30]} a4 {[%emt 0:01:30]} (17... Qc7 $142) 18. c5 {[%emt 0:01:30]} Qc7 {[%emt 0:05:30]} 19. b4 {[%emt 0:06:30]} Bd7 {[%emt 0:08:30]} 20. Rac1 {[%emt 0:02:30]} Bc6 {[%emt 0:02:30] [#]} 21. b5 {[%emt 0:02:30]} (21. Nd6 $1 $18) 21... Bd5 {[%emt 0:01:30]} (21... a3 $16 22. Bxg7 Nxg7) 22. Qg4 {[%emt 0:07:30]} a3 {[%emt 0:16:30]} 23. Ba1 {[%emt 0:05:30]} f6 $2 {[%emt 0:05:30]} (23... Rac8 $16 24. b6 Qd8) 24. b6 {[%emt 0:06:30]} Qc8 {[%emt 0:01:30] [#]} 25. Nd6 $1 {[%emt 0:00:30]} Bxd6 {[%emt 0:03:24]} 26. cxd6 $18 {[%emt 0:00:00]} Bc6 {[%emt 0:02:22]} 27. d7 {[%emt 0:00:00]} Qd8 {[%emt 0:01:31]} 28. Bxc6 {[%emt 0:00:30]} bxc6 {[%emt 0:00:00]} 29. Rxc6 {[%emt 0:00:30]} Qe7 {[%emt 0:00:24]} 30. Qc4 {[%emt 0:00:30]} Kf7 {[%emt 0:00:30]} 31. b7 {[%emt 0:00:30]} Rab8 {[%emt 0:00:56]} 32. Rc8 {[%emt 0:01:30]} Nd6 {[%emt 0:00:30]} 33. Qc7 {[%emt 0:00:00]} Rxb7 {[%emt 0:01:27]} 34. Rxf8+ {[%emt 0:00:00]} 1-0

[Event "Turkish-ch Youth U16 2024"]
[Site "Belek Antalya"]
[Date "2024.01.26"]
[Round "8"]
[White "Cekicoglu, Baris"]
[Black "Tutmaz, Bugra Hamza"]
[Result "1/2-1/2"]
[ECO "E70"]
[WhiteElo "1863"]
[BlackElo "1531"]
[Annotator "NA RC COMBH"]
[PlyCount "58"]
[EventDate "2024.01.21"]
[EventType "swiss"]
[EventCountry "TUR"]
[SourceTitle "playchess.com"]
[Source "ChessBase"]
[SourceQuality "1"]
[TimeControl "5400+30"]

1. c4 {[%emt 0:01:00]} Nf6 {[%emt 0:01:00]} 2. Nc3 {[%emt 0:00:30]} g6 {[%emt 0:00:30]} 3. e4 {[%emt 0:00:30]} d6 {[%emt 0:00:30]} 4. d4 {[%emt 0:00:30]} Bg7 {[%emt 0:00:30]} 5. Bg5 {[%emt 0:00:30]} O-O {[%emt 0:00:30]} 6. Qd2 {[%emt 0:00:30]} c6 {[%emt 0:00:30]} 7. Bd3 {[%emt 0:00:30]} Nfd7 {[%emt 0:00:30]} 8. Nge2 {[%emt 0:00:30]} c5 {[%emt 0:00:30]} 9. O-O {[%emt 0:00:30]} cxd4 {[%emt 0:00:30]} 10. Nxd4 {[%emt 0:00:30]} Nb6 {[%emt 0:00:30]} 11. Rfe1 {[%emt 0:00:30]} Bd7 {[%emt 0:00:30]} 12. Bf1 {[%emt 0:00:30]} Nc6 {[%emt 0:00:30]} 13. Nxc6 {[%emt 0:00:30]} Bxc6 {[%emt 0:00:30]} 14. Rad1 {[%emt 0:00:30]} Re8 $14 {[%emt 0:00:30]} 15. Nd5 {[%emt 0:00:30]} Nd7 {[%emt 0:00:30]} 16. b3 {[%emt 0:00:30]} Nf8 {[%emt 0:00:30]} 17. e5 {[%emt 0:00:30]} Bxd5 {[%emt 0:00:30]} 18. exd6 {[%emt 0:00:30]} Qxd6 {[%emt 0:00:30]} 19. Qxd5 {[%emt 0:00:30]} Qxd5 {[%emt 0:00:30]} 20. cxd5 {[%emt 0:00:30]} f6 {[%emt 0:00:30]} 21. Bc1 {[%emt 0:00:30]} a6 {[%emt 0:00:30]} 22. Ba3 {[%emt 0:00:30]} Kf7 {[%emt 0:00:30]} 23. Bb4 {[%emt 0:00:30]} Bh6 {[%emt 0:00:30]} 24. g3 {[%emt 0:00:30]} Nd7 {[%emt 0:00:30]} 25. Re6 {[%emt 0:00:30]} Bf8 {[%emt 0:00:30]} 26. Rde1 {[%emt 0:00:30]} Ne5 {[%emt 0:00:30]} 27. Re4 {[%emt 1:28:05]} Nf3+ {[%emt 1:26:38]} 28. Kg2 {[%emt 0:00:30]} Nd4 {[%emt 0:00:30]} 29. Rxd4 {[%emt 0:00:30]} Kg8 {[%emt 0:00:30]} 1/2-1/2

[Event "Turkish-ch Youth U16 2024"]
[Site "Belek Antalya"]
[Date "2024.01.26"]
[Round "8"]
[White "Yildiz, Elif Zeren"]
[Black "Mutlu, Ezgi"]
[Result "1/2-1/2"]
[ECO "B23"]
[WhiteElo "1767"]
[BlackElo "1556"]
[Annotator "NA RC COMBH"]
[PlyCount "51"]
[EventDate "2024.01.21"]
[EventType "swiss"]
[EventCountry "TUR"]
[SourceTitle "playchess.com"]
[Source "ChessBase"]
[SourceQuality "1"]
[TimeControl "5400+30"]

1. e4 {[%emt 0:01:00]} c5 {[%emt 0:01:00]} 2. Nc3 {[%emt 0:00:30]} d6 {[%emt 0:00:00]} 3. f4 {[%emt 0:00:00]} Nc6 {[%emt 0:00:00]} 4. Nf3 {[%emt 0:00:00]} Bg4 {[%emt 0:06:30]} 5. Be2 {[%emt 0:08:30]} g6 {[%emt 0:05:30]} 6. Nd5 {[%emt 0:06:30]} Bg7 {[%emt 0:03:30]} 7. c3 {[%emt 0:01:30]} e6 {[%emt 0:06:30]} 8. Ne3 {[%emt 0:00:30]} Bxf3 {[%emt 0:00:30]} 9. Bxf3 {[%emt 0:00:00]} Nge7 {[%emt 0:01:30]} 10. O-O {[%emt 0:08:00]} O-O {[%emt 0:05:30]} 11. d3 {[%emt 0:08:30]} Qd7 {[%emt 0:02:30]} 12. g4 {[%emt 0:05:30]} f5 {[%emt 0:07:30]} 13. Ng2 {[%emt 0:07:30]} d5 {[%emt 0:08:30]} 14. e5 {[%emt 0:05:30]} fxg4 {[%emt 0:03:30]} 15. Bxg4 {[%emt 0:00:30]} Nf5 {[%emt 0:00:30]} 16. Qe1 {[%emt 0:07:30]} Nce7 {[%emt 0:06:30]} 17. b3 {[%emt 0:04:30]} b5 {[%emt 0:06:30]} 18. Ba3 {[%emt 0:05:30]} Rfc8 {[%emt 0:01:30]} 19. Nh4 {[%emt 0:02:30]} a5 {[%emt 0:00:30]} 20. Nxf5 {[%emt 0:02:30]} gxf5 {[%emt 0:03:30]} 21. Bf3 {[%emt 0:00:30]} b4 {[%emt 0:03:30]} 22. Bb2 {[%emt 0:01:30]} Rab8 {[%emt 0:03:30]} 23. c4 {[%emt 0:03:30]} d4 {[%emt 0:02:30]} 24. Kh1 {[%emt 0:02:10]} Ng6 {[%emt 0:01:30]} 25. Bc1 {[%emt 0:00:30]} Qe7 {[%emt 0:00:30]} 26. a4 {[%emt 0:01:34]} 1/2-1/2

[Event "Turkish-ch Youth U16 2024"]
[Site "Belek Antalya"]
[Date "2024.01.26"]
[Round "8"]
[White "Karadas, Hena"]
[Black "Karatiken, Beray"]
[Result "0-1"]
[ECO "B01"]
[WhiteElo "1631"]
[BlackElo "1391"]
[Annotator "NA RC COMBH"]
[PlyCount "63"]
[EventDate "2024.01.21"]
[EventType "swiss"]
[EventCountry "TUR"]
[SourceTitle "playchess.com"]
[Source "ChessBase"]
[SourceQuality "1"]
[TimeControl "5400+30"]

1. e4 {[%emt 0:01:00]} d5 {[%emt 0:01:00]} 2. exd5 {[%emt 0:00:00]} Qxd5 {[%emt 0:00:30]} 3. Nc3 {[%emt 0:03:00]} Qa5 {[%emt 0:00:30]} 4. d4 {[%emt 0:00:30]} c6 {[%emt 0:00:30]} 5. Nf3 {[%emt 0:01:30]} Bf5 {[%emt 0:01:30]} 6. Be2 {[%emt 0:02:30]} e6 {[%emt 0:02:30]} 7. O-O {[%emt 0:02:30]} Nf6 {[%emt 0:02:30]} 8. h3 {[%emt 0:04:30]} Bd6 {[%emt 0:03:30]} 9. Bd2 {[%emt 0:02:30]} Qc7 {[%emt 0:02:30]} 10. Re1 {[%emt 0:03:30]} Nbd7 {[%emt 0:03:30]} 11. Bc4 {[%emt 0:07:30]} O-O-O {[%emt 0:04:30]} 12. Qe2 {[%emt 0:05:30]} h6 {[%emt 0:03:30]} 13. Bc1 {[%emt 0:08:30]} g5 {[%emt 0:08:30]} 14. Ne5 {[%emt 0:02:30]} Bxe5 {[%emt 0:02:30]} 15. dxe5 {[%emt 0:00:30]} Nd5 {[%emt 0:01:30]} 16. a4 {[%emt 0:07:30]} Nf4 {[%emt 0:13:30]} 17. Bxf4 {[%emt 0:05:30]} gxf4 {[%emt 0:00:30]} 18. f3 {[%emt 0:03:30]} Rhg8 {[%emt 0:02:30]} 19. Kh2 {[%emt 0:01:30]} Rg7 {[%emt 0:02:30]} 20. a5 {[%emt 0:03:30]} Rdg8 {[%emt 0:01:30]} 21. g4 {[%emt 0:11:30]} fxg3+ {[%emt 0:04:30]} 22. Kg2 {[%emt 0:00:30]} Nf8 {[%emt 0:02:30]} 23. Bb3 {[%emt 0:00:30]} Ng6 {[%emt 0:01:30]} 24. Ra4 {[%emt 0:00:30]} Qe7 {[%emt 0:06:30]} 25. Qc4 {[%emt 0:01:30]} Qg5 {[%emt 0:03:30]} 26. h4 {[%emt 0:06:40]} Qd2+ {[%emt 0:00:30]} 27. Qe2 {[%emt 0:06:11]} Nf4+ {[%emt 0:00:30]} 28. Rxf4 {[%emt 0:00:30]} Qxf4 {[%emt 0:00:30]} 29. Rh1 {[%emt 0:01:57]} Rd8 {[%emt 0:01:30]} 30. Nb1 {[%emt 0:00:19]} Qd4 {[%emt 0:00:30]} 31. a6 {[%emt 0:00:30]} b6 {[%emt 0:03:30]} 32. h5 {[%emt 0:02:43]} 0-1

[Event "Turkish-ch Youth U16 2024"]
[Site "Belek Antalya"]
[Date "2024.01.26"]
[Round "8"]
[White "Cakir, Mert"]
[Black "Gungor, Cihan Akif"]
[Result "0-1"]
[ECO "C55"]
[WhiteElo "1581"]
[BlackElo "1862"]
[Annotator "NA RC COMBH"]
[PlyCount "86"]
[EventDate "2024.01.21"]
[EventType "swiss"]
[EventCountry "TUR"]
[SourceTitle "playchess.com"]
[Source "ChessBase"]
[SourceQuality "1"]
[TimeControl "5400+30"]

1. e4 {[%emt 0:01:00]} e5 {[%emt 0:01:00]} 2. Nf3 {[%emt 0:00:30]} Nc6 {[%emt 0:00:30]} 3. Bc4 {[%emt 0:00:00]} Nf6 {[%emt 0:00:00]} 4. d3 {[%emt 0:00:00]} Be7 {[%emt 0:00:00]} 5. c3 {[%emt 0:01:30]} d5 {[%emt 0:00:30]} 6. exd5 {[%emt 0:00:30]} Nxd5 {[%emt 0:00:00]} 7. O-O {[%emt 0:01:30]} O-O {[%emt 0:00:00]} 8. h3 {[%emt 0:01:30]} Nb6 {[%emt 0:07:30]} 9. Bb5 {[%emt 0:04:30] C55: Zweispringerspiel.} Qd5 {[%emt 0:00:00]} 10. Qb3 {[%emt 0:20:30]} Qxb3 {[%emt 0:13:00]} 11. axb3 {[%emt 0:00:30]} f6 {[%emt 0:00:30]} 12. Re1 {[%emt 0:03:30]} Be6 {[%emt 0:17:30]} 13. Nbd2 {[%emt 0:03:30]} Kf7 {[%emt 0:15:30]} 14. Bxc6 {[%emt 0:11:30]} bxc6 {[%emt 0:00:00]} 15. d4 {[%emt 0:00:30]} exd4 {[%emt 0:01:00]} 16. Nxd4 {[%emt 0:02:30]} Bd7 {[%emt 0:00:00]} 17. c4 {[%emt 0:11:30]} a5 {[%emt 0:08:00]} 18. N2f3 {[%emt 0:07:30]} ({Günstiger ist} 18. Ne4 $11) 18... Bd6 {[%emt 0:07:30]} (18... c5 $17 19. Nc2 a4 20. bxa4 Bxa4 (20... Rxa4 21. Rxa4 Bxa4 22. Ne3 $15)) 19. Bd2 {[%emt 0:02:30]} a4 {[%emt 0:00:30]} 20. bxa4 {[%emt 0:04:30]} Nxc4 {[%emt 0:00:30]} 21. Bc3 {[%emt 0:04:05]} Rfb8 {[%emt 0:00:00]} 22. b3 {[%emt 0:00:30] [#]} Ne5 {[%emt 0:00:00]} (22... Nb6 $1 $17 23. Nd2 Nd5) 23. Nxe5+ {[%emt 0:01:33]} Bxe5 {[%emt 0:01:30]} 24. Re3 $17 {[%emt 0:02:29]} (24. b4 $11 {remains equal.}) 24... c5 {[%emt 0:02:30]} 25. Nf3 {[%emt 0:00:52]} Bf4 {[%emt 0:00:30]} 26. Rd3 {[%emt 0:03:21]} Be6 {[%emt 0:00:30]} 27. Bd2 {[%emt 0:00:30]} Bd6 {[%emt 0:00:30]} 28. a5 {[%emt 0:02:18]} Bxb3 {[%emt 0:00:30]} 29. Re1 {[%emt 0:02:33]} Be6 {[%emt 0:02:30]} 30. Rde3 {[%emt 0:00:30]} Bd5 {[%emt 0:00:30]} 31. Bc3 {[%emt 0:00:30]} Re8 {[%emt 0:05:00]} 32. Rxe8 {[%emt 0:06:29]} Rxe8 {[%emt 0:00:30]} 33. Rxe8 {[%emt 0:00:30]} Kxe8 {[%emt 0:00:30]} 34. Nh4 {[%emt 0:00:30]} Be4 {[%emt 0:00:30]} 35. f3 {[%emt 0:00:30]} Bd3 {[%emt 0:00:30]} 36. Kf2 {[%emt 0:00:30]} Kd7 {[%emt 0:00:30]} 37. Ke3 {[%emt 0:00:30]} Bb1 {[%emt 0:00:30]} 38. g4 {[%emt 0:00:30]} Kc6 {[%emt 0:00:30]} 39. Ng2 {[%emt 0:00:30]} Kb5 {[%emt 0:00:30]} 40. Nf4 {[%emt 0:00:30]} Ba2 {[%emt 0:00:30]} 41. Nd3 {[%emt 0:00:30]} Bc4 {[%emt 0:00:30]} 42. Nb2 {[%emt 0:00:30]} Bf7 {[%emt 0:00:30]} 43. h4 {[%emt 0:00:30]} c6 {[%emt 0:01:43]} 0-1

[Event "Turkish-ch Youth U16 2024"]
[Site "Belek Antalya"]
[Date "2024.01.26"]
[Round "8"]
[White "Tamer, Kayra"]
[Black "Ozgun, Yigit Deniz"]
[Result "1-0"]
[ECO "E62"]
[WhiteElo "1545"]
[BlackElo "1954"]
[Annotator "TA"]
[PlyCount "83"]
[EventDate "2024.01.21"]
[EventType "swiss"]
[EventCountry "TUR"]
[SourceTitle "playchess.com"]
[Source "ChessBase"]
[SourceQuality "1"]
[TimeControl "5400+30"]

{[%evp 19,83,-9,-14,-47,-6,-10,-18,-16,-16,-10,11,6,13,6,33,28,21,15,71,64,100,97,95,88,103,79,86,83,86,82,83,71,145,144,148,142,156,161,229,241,241,229,680,681,689,674,858,820,935,921,938,924,942,942,939,933,912,912,930,925,916,913,868,881,949,907]} 1. d4 {[%emt 0:01:00]} Nf6 {[%emt 0:07:00]} 2. c4 {[%emt 0:00:30]} g6 {[%emt 0:00:30]} 3. Nf3 {[%emt 0:00:30]} Bg7 {[%emt 0:00:30]} 4. g3 {[%emt 0:00:30]} O-O {[%emt 0:00:30]} 5. Bg2 {[%emt 0:00:30]} d6 {[%emt 0:00:00]} 6. O-O {[%emt 0:00:00]} Nc6 {[%emt 0:00:00]} 7. d5 {[%emt 0:02:00]} Na5 {[%emt 0:07:30]} 8. Nfd2 {[%emt 0:07:30]} c6 {[%emt 0:12:30]} 9. Nc3 {[%emt 0:20:30]} cxd5 {[%emt 0:01:30]} 10. cxd5 {[%emt 0:00:00]} Bd7 {[%emt 0:10:30]} 11. b4 {[%emt 0:15:00]} Rc8 {[%emt 0:00:30]} 12. bxa5 {[%emt 0:00:30] [#] Bb2 is the strong threat.} Rxc3 {[%emt 0:00:30]} 13. Bb2 {[%emt 0:00:30] The position is equal.} Rc5 {[%emt 0:01:30]} 14. Nb3 {[%emt 0:00:30]} Ba4 {[%emt 0:00:00]} 15. Qd2 {[%emt 0:06:30]} Rb5 {[%emt 0:00:00]} 16. Bd4 {[%emt 0:01:30]} Ne8 {[%emt 0:24:30]} 17. Bxg7 {[%emt 0:02:30]} Nxg7 {[%emt 0:00:00]} 18. Rfb1 {[%emt 0:06:30]} Bxb3 {[%emt 0:06:00]} (18... b6 $11 {remains equal.}) 19. axb3 $16 {[%emt 0:00:00] Threatens to win with b4.} Rc5 {[%emt 0:00:30]} 20. b4 {[%emt 0:02:00]} Rc8 {[%emt 0:00:30]} 21. Bh3 {[%emt 0:00:30] Prevents Qd7} f5 {[%emt 0:00:30]} 22. Qd4 {[%emt 0:03:30]} b6 {[%emt 0:01:30]} 23. axb6 {[%emt 0:02:30] White is more active.} Qxb6 {[%emt 0:00:30]} 24. Qd3 {[%emt 0:00:30]} Nh5 {[%emt 0:00:30]} 25. Ra6 {[%emt 0:00:30]} Qb7 {[%emt 0:02:30]} (25... Rc3 $142) 26. e4 $36 {[%emt 0:03:30][%mdl 2048] White is on the roll.} Ng7 {[%emt 0:03:30]} 27. Bf1 {[%emt 0:02:30]} Rc7 {[%emt 0:01:36]} 28. b5 {[%emt 0:02:51][%cal Bb4b5,Bb5b6,Bb6b7][%mdl 32]} Rc5 {[%emt 0:03:23]} (28... Qc8 $142 29. Rba1 fxe4 30. Qxe4 Qd7) 29. Rba1 $18 {[%emt 0:00:30]} fxe4 {[%emt 0:00:30]} 30. Qxe4 {[%emt 0:00:30]} e6 $2 {[%emt 0:02:54]} (30... Rc7 31. h4 Qb8) 31. Rxa7 {[%emt 0:01:12] White is clearly winning.} Qxd5 {[%emt 0:00:30]} 32. Qxd5 {[%emt 0:00:30]} exd5 {[%emt 0:00:30]} 33. b6 {[%emt 0:01:51]} Rc2 {[%emt 0:02:05]} 34. b7 {[%emt 0:02:57]} Rb2 {[%emt 0:00:30] Prevents Rb1.} 35. Bg2 {[%emt 0:00:30]} Rb5 {[%emt 0:00:30]} 36. Ra8 {[%emt 0:00:30][%cal Og2d5] Hoping for Bxd5+!} Ne6 {[%emt 0:00:30]} 37. Rxf8+ {[%emt 0:00:30]} Nxf8 {[%emt 0:00:30] [#]} 38. Bxd5+ $1 {[%emt 0:00:30][%mdl 512]} Kg7 {[%emt 0:00:30]} 39. Ra8 {[%emt 0:00:30]} Nd7 {[%emt 0:00:30]} 40. Bc6 {[%emt 0:00:30]} Rb1+ {[%emt 0:00:30]} 41. Kg2 {[%emt 0:00:30]} Ne5 {[%emt 0:00:30]} 42. Be4 {[%emt 0:01:33] Weighted Error Value: White=0.03 (flawless) /Black=0.42.  Mistake:       	---       	Black=4      Inaccurate:     	---       	Black=3      OK:         	White=11    	Black=8      Best:        	White=4     	Black=1} ({Weaker is} 42. b8=B Nxc6 43. Bxd6 h5 $16) 1-0

[Event "Turkish-ch Youth U16 2024"]
[Site "Belek Antalya"]
[Date "2024.01.26"]
[Round "8"]
[White "Ercan, Hilal"]
[Black "Tirpan, Ceren"]
[Result "1-0"]
[ECO "B31"]
[WhiteElo "1471"]
[BlackElo "2025"]
[Annotator "NA RC"]
[PlyCount "99"]
[EventDate "2024.01.21"]
[EventType "swiss"]
[EventCountry "TUR"]
[SourceTitle "playchess.com"]
[Source "ChessBase"]
[SourceQuality "1"]
[TimeControl "5400+30"]

1. e4 {[%emt 0:01:00]} c5 {[%emt 0:01:00]} 2. a4 {[%emt 0:00:00]} Nc6 {[%emt 0:00:30]} 3. Bb5 {[%emt 0:00:00]} e6 {[%emt 0:00:00]} 4. Bxc6 {[%emt 0:01:30]} bxc6 {[%emt 0:00:00]} 5. d3 {[%emt 0:00:30]} g6 {[%emt 0:01:30]} (5... d5 {was preferrable.}) 6. h4 {[%emt 0:01:30] B31: Sicilian: 2...Nc6 3 Bb5 g6.} h5 {[%emt 0:03:30]} ({Better is} 6... e5 $11) 7. Nc3 {[%emt 0:03:30]} Bg7 {[%emt 0:00:00]} 8. Nf3 {[%emt 0:00:30]} d5 {[%emt 0:02:00]} 9. e5 {[%emt 0:02:30]} Nh6 {[%emt 0:03:30]} 10. Bg5 {[%emt 0:07:30]} Qa5 {[%emt 0:07:30]} 11. O-O {[%emt 0:01:30]} Ng4 {[%emt 0:07:30]} 12. Re1 {[%emt 0:09:30]} Rb8 {[%emt 0:04:30]} 13. Rb1 {[%emt 0:02:30]} Qc7 {[%emt 0:01:30]} 14. Qe2 {[%emt 0:02:30]} O-O {[%emt 0:00:00]} 15. Bf4 {[%emt 0:03:30] [#]} Rb4 $1 {[%emt 0:22:00]} 16. Bg3 {[%emt 0:01:30]} Nh6 {[%emt 0:00:30]} (16... c4 $15 {is more appropriate.}) 17. Qd2 $1 {[%emt 0:04:30]} Qe7 {[%emt 0:10:30]} (17... Nf5 $15) 18. Bf4 {[%emt 0:08:30]} Ng4 {[%emt 0:01:30]} 19. b3 {[%emt 0:03:30]} f6 {[%emt 0:01:30]} 20. Na2 {[%emt 0:06:30]} Rb7 {[%emt 0:00:30]} 21. exf6 {[%emt 0:09:30]} Bxf6 {[%emt 0:00:30]} 22. Bg3 {[%emt 0:03:30]} e5 {[%emt 0:12:27]} 23. Re2 {[%emt 0:00:30]} Qg7 {[%emt 0:01:54]} (23... Qd8 $11) 24. Rbe1 {[%emt 0:01:30]} Re7 {[%emt 0:00:20]} 25. Qa5 {[%emt 0:01:30]} Rfe8 $14 {[%emt 0:00:04]} (25... g5 $11) 26. Qxc5 {[%emt 0:02:30]} Kh8 {[%emt 0:04:33]} 27. Ng5 {[%emt 0:05:56]} Nh6 {[%emt 0:01:24]} 28. Nf3 {[%emt 0:06:00]} Bg4 {[%emt 0:00:14]} 29. Qxc6 {[%emt 0:00:36]} Nf5 {[%emt 0:02:19]} 30. Qxd5 {[%emt 0:00:30]} Bxf3 {[%emt 0:00:30]} 31. gxf3 {[%emt 0:00:30]} Nxh4 {[%emt 0:00:30]} 32. Qe4 {[%emt 0:00:30]} Nf5 {[%emt 0:00:30]} 33. Nb4 {[%emt 0:00:30]} h4 {[%emt 0:00:30]} 34. Bh2 {[%emt 0:00:30]} Nd4 {[%emt 0:00:30]} 35. Rd2 {[%emt 0:00:30]} Qh6 {[%emt 0:00:30]} 36. Rdd1 {[%emt 0:00:30]} Qg5+ {[%emt 0:00:57]} 37. Kh1 {[%emt 0:05:25]} Qh5 {[%emt 0:00:30]} 38. Nd5 {[%emt 0:00:30]} Re6 {[%emt 0:05:21]} 39. Nc7 {[%emt 0:02:15]} Nxf3 {[%emt 0:01:22]} 40. Nxe8 {[%emt 0:00:39]} Rxe8 {[%emt 0:00:41]} 41. Rg1 {[%emt 0:01:46]} Nd4 {[%emt 0:05:01]} 42. Qxg6 {[%emt 0:01:28]} Qf3+ {[%emt 0:00:30]} 43. Qg2 {[%emt 0:00:02]} Qh5 {[%emt 0:00:37]} 44. Qg4 {[%emt 0:01:13]} Qf7 {[%emt 0:00:13]} 45. Qe4 {[%emt 0:00:31]} Qh5 {[%emt 0:00:24]} 46. Rg4 {[%emt 0:00:59]} Nf5 {[%emt 0:00:55]} 47. Rdg1 {[%emt 0:00:27]} Rf8 {[%emt 0:00:42]} 48. Bxe5 {[%emt 0:00:36]} Ng3+ {[%emt 0:00:20]} 49. fxg3 {[%emt 0:00:49]} hxg3+ {[%emt 0:00:32]} 50. Rh4 {[%emt 0:00:00]} 1-0

[Event "Turkish-ch Youth U16 2024"]
[Site "Belek Antalya"]
[Date "2024.01.26"]
[Round "8"]
[White "Engel, Ecrin Tuana"]
[Black "Kucuk, Aybike"]
[Result "0-1"]
[ECO "B10"]
[WhiteElo "1377"]
[BlackElo "1672"]
[Annotator "NA RC COMBH"]
[PlyCount "72"]
[EventDate "2024.01.21"]
[EventType "swiss"]
[EventCountry "TUR"]
[SourceTitle "playchess.com"]
[Source "ChessBase"]
[SourceQuality "1"]
[TimeControl "5400+30"]

1. e4 {[%emt 0:01:00]} c6 {[%emt 0:01:00]} 2. Nf3 {[%emt 0:00:30]} d5 {[%emt 0:00:30]} 3. exd5 {[%emt 0:00:30]} cxd5 {[%emt 0:00:00]} 4. Ne5 {[%emt 0:00:00]} Nf6 {[%emt 0:02:00]} 5. d4 {[%emt 0:00:00]} e6 {[%emt 0:01:30]} 6. c3 {[%emt 0:00:30]} Bd6 {[%emt 0:00:30]} 7. Nd2 {[%emt 0:00:00]} Nbd7 {[%emt 0:02:30]} 8. f4 {[%emt 0:00:00]} b6 {[%emt 0:02:30]} 9. Bd3 {[%emt 0:07:30]} Bb7 {[%emt 0:03:30]} 10. O-O {[%emt 0:00:30]} O-O {[%emt 0:01:30]} 11. a4 {[%emt 0:01:30]} Ne4 {[%emt 0:06:30]} 12. Qe2 {[%emt 0:10:30]} f5 {[%emt 0:06:30]} 13. Ba6 {[%emt 0:07:30]} Bxa6 {[%emt 0:10:30]} 14. Qxa6 {[%emt 0:00:30]} Qc7 {[%emt 0:03:30]} 15. Ndf3 {[%emt 0:08:30]} Rfc8 {[%emt 0:14:30]} 16. Nxd7 {[%emt 0:07:30]} Qxd7 {[%emt 0:00:30]} 17. Ne5 {[%emt 0:00:00]} Qc7 {[%emt 0:02:30]} 18. a5 {[%emt 0:05:00]} Bxe5 {[%emt 0:03:30]} 19. fxe5 {[%emt 0:01:30]} Qc6 {[%emt 0:00:00]} 20. Qe2 {[%emt 0:05:30]} b5 {[%emt 0:02:00]} 21. g4 {[%emt 0:05:30]} Rc7 {[%emt 0:07:30]} 22. gxf5 {[%emt 0:11:30]} exf5 {[%emt 0:00:30]} 23. Qg2 {[%emt 0:01:30]} Rf8 {[%emt 0:01:30]} 24. Rf3 {[%emt 0:01:30]} Qg6 {[%emt 0:04:30]} 25. Be3 {[%emt 0:08:45]} Qxg2+ {[%emt 0:05:06]} 26. Kxg2 {[%emt 0:00:30]} g5 {[%emt 0:00:30]} 27. Rd1 {[%emt 0:04:07]} Rcf7 {[%emt 0:02:00]} 28. Bd2 {[%emt 0:00:30]} f4 {[%emt 0:02:54]} 29. h3 {[%emt 0:03:41]} h5 {[%emt 0:00:45]} 30. Be1 {[%emt 0:00:30]} g4 {[%emt 0:00:30]} 31. Rf1 {[%emt 0:00:30]} Rg7 {[%emt 0:00:30]} 32. Kh2 {[%emt 0:00:30]} g3+ {[%emt 0:00:30]} 33. Kg2 {[%emt 0:05:32]} f3+ {[%emt 0:04:51]} 34. Rxf3 {[%emt 0:00:30]} Rxf3 {[%emt 0:00:30]} 35. Kxf3 {[%emt 0:00:30]} g2 {[%emt 0:00:30]} 36. Bf2 {[%emt 0:00:30]} Rf7+ {[%emt 0:00:30]} 0-1